bitfinex/quotes_ETHUSD_20241204
["timestamp","ask_amount","ask_price","bid_price","bid_amount"]
[1733334657463,0.52112568,3816.3,3814.3,0.25945493]
[1733334657464,2.1556,3815.9,3814.3,0.25945493]
[1733334657663,0.55,3815.7,3814.0,2.62186]
[1733334657992,1.6313,3815.6,3813.9,0.02621222]
[1733334658205,1.6313,3815.6,3814.6,2.62144]
[1733334658489,1.6313,3815.6,3814.4,2.62163]
[1733334658651,0.21813,3815.5,3814.4,2.62163]
[1733334658852,0.21813,3815.5,3814.5,2.62156]
[1733334659070,0.21813,3815.5,3813.9,2.62193]
[1733334659271,1.5994,3815.4,3813.8,0.25868661]
[1733334659483,1.5994,3815.4,3814.3,2.62166]
[1733334659771,0.23486662,3815.3,3813.6,0.26054118]
[1733334659999,0.23486662,3815.3,3814.1,2.62179]
[1733334660200,0.23486662,3815.3,3814.2,0.02621461]
[1733334660410,1.5994,3815.4,3815.1,2.62115]
[1733334660615,1.5994,3815.4,3815.3,2.62102]
[1733334660934,1.5994,3816.1,3816.0,2.62054]
[1733334661270,1.5994,3816.1,3815.2,2.62102]
[1733334661271,1.5994,3816.1,3815.6,2.62078]
[1733334661474,1.5994,3816.1,3816.0,2.62054]
[1733334661676,1.5555,3817.0,3815.5,0.02620357]
[1733334661890,1.5555,3817.0,3816.2,2.62038]
[1733334662110,1.5555,3817.0,3815.8,3.02620029]
[1733334662286,1.5555,3817.0,3816.5,2.62019]
[1733334662474,1.5555,3817.0,3815.6,0.02619877]
[1733334662684,1.5555,3817.0,3816.2,2.62037]
[1733334662941,1.5555,3817.0,3816.4,2.62026]
[1733334663230,1.5555,3817.0,3815.5,3.0]
[1733334663423,1.5555,3817.0,3816.2,2.62037]
[1733334663726,1.5555,3817.0,3815.5,3.0]
[1733334663910,1.76313546,3817.0,3815.5,3.0]
[1733334664082,1.76313546,3817.0,3815.8,2.62061]
[1733334664428,1.76313546,3817.0,3814.6,2.62144]
[1733334664429,1.5271,3816.6,3814.6,2.62144]
[1733334664604,0.55,3816.9,3814.0,1.6174]
[1733334664605,1.5271,3816.4,3814.5,0.51409096]
[1733334664917,1.5338,3816.2,3814.5,2.62153]
[1733334665102,1.5338,3816.2,3815.0,2.62122]
[1733334665278,1.5338,3816.2,3815.1,2.6211]
[1733334666027,1.5338,3816.2,3814.8,2.62134]
[1733334666191,1.5338,3816.2,3814.4,3.0]
[1733334666393,1.5338,3816.2,3815.0,2.62123]
[1733334666620,1.5338,3816.2,3814.5,2.62157]
[1733334666621,1.75484057,3816.2,3814.4,3.38653163]
[1733334666819,1.75484057,3816.2,3815.1,2.62115]
[1733334667014,1.75484057,3816.2,3815.0,2.62119]
[1733334667540,1.75484057,3816.2,3814.7,2.62143]
[1733334667752,1.75484057,3816.2,3814.4,0.38653163]
[1733334667966,1.5338,3816.2,3814.5,0.3356662]
[1733334668118,1.5338,3816.2,3815.2,2.62109]
[1733334668322,1.5338,3816.2,3815.4,2.62088]
[1733334668833,1.5338,3816.2,3815.3,2.62101]
[1733334669650,1.5338,3816.2,3814.8,0.25891411]
[1733334669864,0.55,3815.9,3814.6,0.2633]
[1733334670017,1.6636,3816.0,3815.8,2.62067]
[1733334670225,1.6636,3816.0,3815.6,2.62077]
[1733334670865,1.6636,3816.0,3815.6,2.6208]
[1733334671079,1.6636,3816.0,3815.6,2.62076]
[1733334671256,1.6636,3816.0,3815.9,2.62061]
[1733334671567,1.6512,3817.4,3816.3,2.62032]
[1733334671768,1.84369979,3817.3,3816.3,2.62032]
[1733334671971,1.84369979,3817.3,3815.4,0.2633]
[1733334672175,1.6512,3817.3,3815.9,2.62061]
[1733334672335,1.6512,3817.3,3816.7,2.62005]
[1733334672529,1.6512,3817.3,3815.6,1.538]
[1733334672737,1.6512,3817.3,3815.3,2.62102]
[1733334673055,1.5848,3817.1,3815.3,0.2633]
[1733334673369,1.5848,3816.0,3815.0,2.88289321]
[1733334673570,1.5848,3816.0,3815.1,2.62114]
[1733334673731,1.5848,3816.0,3814.5,0.41629124]
[1733334674074,1.5848,3816.0,3814.2,0.53033321]
[1733334674368,1.5848,3816.0,3815.0,2.62116]
[1733334674573,1.5848,3816.0,3814.3,0.41629124]
[1733334674574,1.5096,3815.8,3814.3,0.41629124]
[1733334674779,1.5096,3815.6,3815.0,2.62117]
[1733334674982,1.5096,3815.6,3814.8,2.62136]
[1733334675281,1.5096,3815.6,3815.0,2.62122]
[1733334675573,1.5096,3815.6,3814.7,2.62143]
[1733334675732,1.5096,3815.6,3814.8,2.62135]
[1733334675935,1.5096,3815.6,3814.4,3.0]
[1733334676129,1.5096,3815.6,3814.1,3.2633]
[1733334676130,1.5096,3815.6,3814.7,2.62143]
[1733334676435,1.5096,3815.6,3814.4,3.0]
[1733334676977,1.5096,3815.6,3814.9,2.62126]
[1733334677275,1.5096,3815.6,3814.5,2.62157]
[1733334677475,1.5845,3816.4,3814.6,0.75195979]
[1733334677775,1.5845,3816.4,3815.9,2.62057]
[1733334677988,1.5008,3817.1,3816.3,2.62033]
[1733334678186,1.5008,3817.1,3816.4,2.64642931]
[1733334678483,1.5008,3817.1,3816.7,2.62004]
[1733334679039,1.5008,3817.1,3816.9,2.6199]
[1733334679239,1.5008,3817.1,3816.3,2.62028]
[1733334679240,1.5008,3817.1,3816.7,2.62001]
[1733334679542,1.5008,3817.1,3816.4,0.26983249]
[1733334679742,1.5008,3817.1,3816.5,2.6202]
[1733334679937,1.5008,3817.1,3816.1,3.0]
[1733334680160,1.5008,3817.1,3816.4,2.62021]
[1733334680382,1.65088,3817.1,3815.9,2.62061]
[1733334680687,1.5008,3817.1,3816.3,2.62033]
[1733334680884,1.5008,3817.1,3816.5,2.62017]
[1733334681089,1.5008,3817.1,3816.0,2.62054]
[1733334681243,1.5008,3817.1,3816.4,2.62025]
[1733334681844,1.5008,3817.1,3816.2,5.24075]
[1733334682149,1.5008,3817.1,3817.0,2.61985]
[1733334682491,1.5008,3817.1,3817.0,3.04641107]
[1733334682690,1.5008,3817.1,3817.0,2.61985]
[1733334683204,1.5008,3817.1,3815.6,2.62078]
[1733334683205,1.5008,3817.1,3815.9,0.69596955]
[1733334683492,1.65088,3817.1,3815.8,0.42656107]
[1733334683698,1.65088,3817.1,3815.6,0.52328582]
[1733334683699,1.5008,3817.1,3816.1,0.42656107]
[1733334683846,1.5008,3817.1,3816.1,3.04702107]
[1733334684049,1.5008,3817.1,3817.0,2.61985]
[1733334684250,2.03688141,3818.1,3816.3,3.51898843]
[1733334684449,1.5224,3818.1,3817.3,2.61962]
[1733334684992,1.5224,3818.1,3816.4,1.602]
[1733334685198,1.5224,3818.1,3817.2,2.61971]
[1733334685421,1.69073075,3818.1,3817.2,2.61971]
[1733334685571,1.69073075,3818.1,3816.9,2.61986]
[1733334685974,1.69073075,3818.1,3816.6,2.62008]
[1733334686176,1.69073075,3818.1,3816.4,0.2673821]
[1733334686387,1.69073075,3818.1,3816.0,2.62054]
[1733334686588,1.5224,3818.1,3816.5,2.6202]
[1733334686873,1.5224,3818.1,3816.7,2.62006]
[1733334687083,1.5224,3818.1,3817.7,2.61935]
[1733334687421,1.5224,3818.1,3817.4,2.61957]
[1733334687618,1.5224,3818.1,3817.1,2.61977]
[1733334687913,1.69073075,3818.1,3817.0,2.61984]
[1733334688117,1.69073075,3818.1,3816.7,0.26476117]
[1733334688414,1.5224,3818.1,3816.8,0.02619283]
[1733334688617,1.5224,3818.1,3816.8,3.4527539]
[1733334688922,0.1609075,3818.2,3818.0,2.61917]
[1733334689084,0.1609075,3818.2,3818.1,3.04566107]
[1733334689602,0.1609075,3818.2,3818.1,6.04566107]
[1733334690324,0.1609075,3818.2,3818.1,5.6191]
[1733334690909,0.1609075,3818.2,3817.7,2.61937]
[1733334691219,0.1609075,3818.2,3818.1,2.6191]
[1733334691423,1.5155,3819.2,3818.3,2.61892]
[1733334691724,1.5155,3819.2,3818.2,0.02618329]
[1733334691876,1.5155,3819.2,3818.4,2.61888]
[1733334692420,1.5155,3819.2,3817.8,2.61927]
[1733334692421,1.87035211,3819.2,3817.8,2.61927]
[1733334692721,1.87035211,3819.2,3818.0,2.61911]
[1733334693228,1.87035211,3819.2,3818.1,2.61908]
[1733334693431,1.87035211,3819.2,3818.1,2.61909]
[1733334693634,1.5155,3819.2,3817.7,2.61937]
[1733334693785,1.5155,3819.2,3817.8,0.02618521]
[1733334693995,1.5155,3819.2,3818.7,2.61867]
[1733334694206,1.5155,3819.2,3818.8,2.61858]
[1733334694490,1.5155,3819.2,3818.1,1.5358]
[1733334694491,1.5155,3819.2,3818.2,2.61903]
[1733334694708,1.5155,3819.2,3818.1,5.61905]
[1733334694926,0.08139004,3819.7,3818.2,3.0]
[1733334695110,0.08139004,3819.7,3818.3,3.0]
[1733334695313,1.5431,3819.2,3817.8,3.26928995]
[1733334695513,1.5431,3819.2,3817.8,0.26928995]
[1733334695829,1.5431,3819.2,3818.3,2.61896]
[1733334696028,1.5431,3819.2,3817.9,3.0]
[1733334696029,1.5431,3819.2,3818.1,2.61908]
[1733334696190,1.5431,3819.2,3818.1,0.02618301]
[1733334696391,1.5431,3819.2,3818.6,2.61873]
[1733334696926,1.5431,3819.2,3818.0,3.0]
[1733334697224,1.5431,3819.2,3818.6,2.61875]
[1733334697623,1.5431,3819.2,3818.7,2.61866]
[1733334697826,1.5431,3819.2,3818.0,3.0]
[1733334698039,1.90071211,3819.2,3817.9,2.61923]
[1733334698357,1.5454,3818.9,3815.9,4.20801]
[1733334698492,1.5454,3818.4,3816.3,0.42656107]
[1733334698829,1.5454,3818.4,3816.7,0.52145262]
[1733334698995,1.69994,3818.4,3816.8,2.61999]
[1733334699337,1.5454,3818.4,3817.0,1.5874]
[1733334699517,1.5454,3818.4,3817.2,2.61972]
[1733334699721,1.5454,3818.4,3817.9,2.61921]
[1733334699921,1.5454,3818.4,3816.7,0.52145262]
[1733334700241,1.5454,3818.4,3816.9,3.0]
[1733334700444,1.5454,3818.4,3817.3,2.61961]
[1733334700664,1.5454,3818.4,3816.9,3.0]
[1733334700665,1.69994,3818.4,3816.9,0.02619168]
[1733334700802,1.69994,3818.4,3817.5,2.61944]
[1733334700803,1.5454,3818.4,3817.5,2.61944]
[1733334701006,1.5454,3818.4,3817.4,2.61953]
[1733334701313,1.5454,3818.4,3817.4,2.61956]
[1733334701511,1.5454,3818.4,3817.0,0.02619118]
[1733334701711,2.03302112,3819.3,3817.0,0.02619118]
[1733334701712,2.03302112,3819.3,3818.3,2.61896]
[1733334701942,1.5474,3819.2,3817.7,3.0]
[1733334702253,1.5474,3819.2,3818.0,3.0]
[1733334702400,1.5474,3819.2,3818.0,2.61916]
[1733334702602,1.5474,3819.2,3817.6,0.5169086]
[1733334702901,1.5474,3819.2,3817.1,1.5567]
[1733334703101,1.5108,3819.0,3817.1,4.17642]
[1733334703330,1.5108,3819.0,3817.1,1.94780565]
[1733334703537,1.5108,3819.0,3817.3,3.0]
[1733334703942,1.5108,3819.0,3817.8,2.61927]
[1733334704402,1.5108,3819.0,3817.2,0.53555481]
[1733334704605,1.78081723,3818.9,3817.7,2.61931]
[1733334705129,1.78081723,3818.9,3817.8,2.61929]
[1733334705438,1.78081723,3818.9,3817.3,2.61959]
[1733334705645,1.78081723,3818.9,3817.1,0.26481868]
[1733334705937,1.6367,3818.8,3817.0,2.61985]
[1733334706138,0.44441972,3818.7,3817.4,2.61951]
[1733334706301,1.6367,3818.6,3817.4,2.61951]
[1733334706509,1.6367,3818.6,3816.7,0.02619159]
[1733334706703,1.6367,3818.6,3817.5,2.61948]
[1733334706905,1.6367,3818.6,3817.4,2.61955]
[1733334707230,0.16367,3818.5,3817.4,2.61955]
[1733334707749,0.16367,3818.5,3817.3,2.6196]
[1733334707917,0.16367,3818.5,3816.8,3.0]
[1733334708119,0.16367,3818.5,3817.8,2.61929]
[1733334708322,1.6367,3818.6,3817.5,2.61951]
[1733334708524,1.6367,3818.6,3817.8,2.61929]
[1733334708843,1.6367,3818.6,3817.1,0.51881849]
[1733334709145,1.6367,3818.6,3816.7,0.26788996]
[1733334709330,0.18891723,3818.9,3816.6,4.5553]
[1733334709331,1.6644,3818.4,3816.6,2.62009]
[1733334709654,1.6644,3818.4,3816.7,0.5114315]
[1733334709962,1.6644,3818.4,3816.8,0.0261942]
[1733334710165,1.6644,3818.4,3817.7,2.61937]
[1733334710454,1.6644,3818.4,3818.2,2.61897]
[1733334710615,1.6644,3818.4,3817.0,3.02619091]
[1733334710616,1.6644,3818.4,3818.0,2.61916]
[1733334710952,1.6644,3818.4,3816.9,2.61988]
[1733334711252,1.6644,3818.4,3816.7,0.90253715]
[1733334711253,1.83084,3818.4,3817.0,0.26035595]
[1733334711597,1.6136,3818.3,3816.8,2.61998]
[1733334711750,1.6136,3818.3,3816.7,0.26732102]
[1733334711751,2.61903,3818.2,3816.7,0.26732102]
[1733334711906,2.61917,3818.1,3816.7,0.26732102]
[1733334712102,1.95422845,3818.0,3816.7,0.26732102]
[1733334712305,1.95422845,3818.0,3816.4,2.62022]
[1733334712306,1.585,3817.9,3816.4,2.62022]
[1733334712503,1.6266,3817.8,3816.4,2.62025]
[1733334712742,2.61925,3817.9,3815.9,2.88420986]
[1733334712743,0.55,3817.6,3816.1,2.62044]
[1733334712944,1.6266,3817.3,3815.9,0.26363986]
[1733334713105,1.70376,3817.2,3815.6,2.62077]
[1733334713303,1.70376,3817.2,3815.9,2.62054]
[1733334713931,1.70376,3817.2,3815.6,0.52369076]
[1733334714137,1.70376,3817.2,3815.8,2.62066]
[1733334714346,2.22603776,3817.2,3815.4,0.65907219]
[1733334714552,1.5411,3816.9,3815.4,0.25921717]
[1733334714832,1.5411,3816.9,3815.4,2.6209]
[1733334715048,1.5411,3816.9,3815.1,2.62114]
[1733334715248,1.5411,3816.9,3815.4,0.39985502]
[1733334715458,1.5411,3816.9,3816.8,2.61999]
[1733334715770,0.51703717,3818.5,3817.2,2.61968]
[1733334716060,0.51703717,3818.5,3816.3,0.39985502]
[1733334716061,1.6479,3818.4,3816.3,0.39985502]
[1733334716231,1.86439372,3818.4,3816.5,3.0]
[1733334716433,1.86439372,3818.4,3817.1,2.61977]
[1733334716635,1.86439372,3818.4,3816.5,3.0]
[1733334716636,1.86439372,3818.4,3816.7,3.0]
[1733334716835,1.86439372,3818.4,3816.5,1.85954912]
[1733334717066,1.6479,3818.4,3817.5,2.6195]
[1733334717277,1.6479,3818.4,3816.8,0.39985502]
[1733334717278,1.6479,3818.4,3817.1,2.61978]
[1733334717436,1.6479,3818.4,3816.8,0.42604768]
[1733334717762,1.6479,3818.4,3817.8,2.6193]
[1733334717921,1.6479,3818.4,3817.0,3.0]
[1733334718275,1.6479,3818.4,3817.0,3.02618963]
[1733334718421,1.6479,3818.4,3817.1,2.61978]
[1733334718617,1.6479,3818.4,3817.2,4.66938965]
[1733334718823,1.6479,3818.4,3818.3,2.61896]
[1733334720124,1.6479,3818.4,3817.2,4.6432]
[1733334720125,1.6479,3818.4,3817.9,2.61921]
[1733334720326,1.6479,3818.4,3816.8,2.17663183]
[1733334720520,1.6479,3818.4,3818.2,2.61899]
[1733334720919,1.6479,3818.4,3817.9,2.6192]
[1733334721132,1.6479,3818.4,3818.1,2.61909]
[1733334721337,1.6479,3818.4,3817.3,3.0]
[1733334721566,1.6479,3818.4,3818.0,2.61912]
[1733334721955,1.6479,3818.4,3818.1,2.6191]
[1733334722159,1.6479,3818.4,3817.3,2.61959]
[1733334722533,1.6479,3818.4,3817.0,2.61982]
[1733334722740,1.6479,3818.4,3817.5,2.61951]
[1733334722963,1.75549,3818.3,3817.1,3.0]
[1733334723154,1.5907,3818.3,3817.1,0.0261924]
[1733334723378,1.5907,3818.3,3818.2,2.61903]
[1733334723876,1.5907,3818.3,3817.8,2.6193]
[1733334724102,1.5907,3818.3,3817.9,2.61918]
[1733334724388,1.5907,3818.3,3817.7,2.61936]
[1733334724537,1.5907,3818.3,3817.5,2.6195]
[1733334724744,1.74977,3818.3,3816.2,1.80358967]
[1733334724965,1.74977,3818.3,3816.8,2.61998]
[1733334725274,1.6035,3818.2,3816.0,0.53640368]
[1733334725479,1.6035,3818.2,3815.8,1.5103]
[1733334725480,1.5165,3818.1,3816.7,2.62006]
[1733334725788,1.5165,3818.0,3816.4,2.62021]
[1733334725937,1.5165,3818.0,3816.4,2.6202]
[1733334725938,1.5165,3817.8,3816.4,2.6202]
[1733334726133,1.5165,3817.8,3815.5,0.02620077]
[1733334726361,1.5165,3817.8,3816.1,0.74938344]
[1733334726560,1.5165,3817.8,3816.3,4.21183]
[1733334726795,1.5165,3817.8,3817.7,2.61937]
[1733334726938,1.5165,3817.8,3816.8,5.61995]
[1733334727135,1.5165,3817.8,3817.5,2.61951]
[1733334727334,1.5165,3817.8,3816.6,3.0]
[1733334727643,0.51704714,3819.2,3818.5,2.61881]
[1733334727956,0.51704714,3819.2,3818.2,2.61898]
[1733334727957,1.80750683,3819.1,3818.2,2.61898]
[1733334728160,1.80750683,3819.1,3817.7,2.61931]
[1733334728360,1.80750683,3819.1,3818.0,2.61917]
[1733334728884,1.80750683,3819.1,3817.2,0.26920729]
[1733334729038,1.5607,3818.8,3817.0,2.61981]
[1733334729386,1.5607,3818.6,3817.5,2.61951]
[1733334729756,1.5607,3818.6,3817.5,2.61949]
[1733334729957,1.5607,3818.6,3816.7,3.40846919]
[1733334730148,1.5607,3818.6,3817.6,2.61944]
[1733334730588,1.5607,3818.6,3816.9,2.61992]
[1733334730816,0.177177,3818.5,3817.7,2.61936]
[1733334731023,1.6383,3818.4,3817.1,2.61973]
[1733334731189,1.6383,3818.4,3817.4,2.61957]
[1733334731378,1.6383,3818.4,3817.6,2.61943]
[1733334731586,0.1815477,3818.3,3817.1,2.61973]
[1733334731781,1.6383,3818.4,3816.9,3.02838919]
[1733334731981,1.6383,3818.4,3817.1,0.2633]
[1733334732219,1.6383,3818.4,3817.8,2.61925]
[1733334732422,1.6383,3818.4,3817.8,2.61924]
[1733334732629,1.6383,3818.4,3817.2,2.61972]
[1733334732831,1.6383,3818.2,3817.3,2.61963]
[1733334732984,1.6383,3818.2,3817.1,2.88307]
[1733334733327,1.6383,3818.2,3816.8,2.61997]
[1733334733526,1.6383,3818.0,3816.5,0.5263019]
[1733334733725,1.6383,3818.0,3816.9,2.61991]
[1733334734014,1.85533172,3817.9,3816.8,2.61998]
[1733334734204,1.85533172,3817.9,3816.4,0.2633]
[1733334734404,1.6383,3817.7,3816.2,2.6204]
[1733334734605,1.6383,3817.6,3816.0,0.2633]
[1733334734916,1.5516,3817.5,3816.0,0.2633]
[1733334735127,4.17126,3817.3,3816.0,0.2633]
[1733334735281,4.17126,3817.3,3815.0,3.14572471]
[1733334735282,1.5516,3817.1,3815.9,0.2633]
[1733334735483,2.6198,3817.1,3815.9,0.2633]
[1733334735727,1.5516,3816.8,3816.0,2.62053]
[1733334736045,1.5516,3816.8,3815.4,0.67176919]
[1733334736184,1.5762,3816.6,3815.4,0.2633]
[1733334736695,1.5762,3816.6,3814.7,5.33520549]
[1733334736696,1.5762,3816.1,3814.7,5.33520549]
[1733334736908,1.5762,3815.9,3814.4,5.33520549]
[1733334737083,9.34,3816.4,3814.2,5.33520549]
[1733334737084,1.5762,3815.8,3814.2,5.33520549]
[1733334737284,1.5762,3815.8,3814.4,2.62158]
[1733334737480,1.6525,3815.6,3814.4,2.62163]
[1733334738338,1.6525,3815.6,3814.1,0.26352138]
[1733334738628,1.6525,3815.6,3815.1,2.62109]
[1733334738921,1.6525,3815.6,3814.3,5.33520549]
[1733334739121,1.6525,3815.6,3814.5,2.62155]
[1733334739279,1.6128,3815.4,3814.6,2.62149]
[1733334739483,1.6128,3815.4,3814.5,2.62157]
[1733334739724,1.6128,3815.4,3814.3,2.62171]
[1733334740380,1.6128,3815.4,3813.9,5.33520549]
[1733334740583,1.6128,3815.4,3813.8,5.60222459]
[1733334740804,0.51753419,3816.1,3813.9,0.02621697]
[1733334740805,1.6125,3815.3,3813.9,0.02621697]
[1733334741026,1.6125,3815.3,3813.9,5.33520549]
[1733334741327,1.6125,3815.3,3815.2,2.62109]
[1733334741526,1.6125,3815.3,3815.0,2.62122]
[1733334741818,1.6125,3815.3,3815.2,2.62109]
[1733334742120,1.6125,3815.3,3815.0,2.62122]
[1733334742319,1.6125,3815.3,3815.0,2.57122]
[1733334742681,1.6125,3815.3,3814.5,2.62153]
[1733334742900,1.77375,3815.3,3814.3,2.62171]
[1733334743096,1.77375,3815.3,3813.9,5.33520549]
[1733334743306,1.77375,3815.3,3814.0,2.62191]
[1733334743646,1.77375,3815.3,3814.1,2.62179]
[1733334743804,0.177375,3815.2,3813.9,5.33520549]
[1733334744003,0.177375,3815.2,3814.6,2.62148]
[1733334744516,1.6125,3815.3,3814.3,2.62171]
[1733334744722,1.6125,3815.3,3815.2,2.62109]
[1733334745225,0.20666412,3816.7,3814.9,2.62125]
[1733334745226,1.6069,3816.5,3814.9,0.02620965]
[1733334745410,1.6069,3816.5,3815.0,2.62123]
[1733334745613,1.6069,3816.5,3815.7,2.62069]
[1733334745830,0.23442387,3816.4,3815.3,2.62099]
[1733334745994,0.23442387,3816.4,3816.0,2.62053]
[1733334746337,0.23442387,3816.4,3815.8,2.62067]
[1733334746546,0.23442387,3816.4,3814.9,5.6213]
[1733334746697,0.23442387,3816.4,3815.0,5.62123]
[1733334746900,0.23442387,3816.4,3815.8,2.62067]
[1733334747209,0.23719985,3816.3,3815.8,2.62067]
[1733334747408,1.5208,3816.2,3815.4,2.62089]
[1733334747806,1.5208,3816.2,3814.3,7.95688549]
[1733334747807,1.5208,3816.2,3814.2,5.33520549]
[1733334748044,1.5208,3816.1,3814.3,2.62166]
[1733334748196,1.5208,3816.1,3814.4,0.2633]
[1733334748400,1.5208,3816.1,3814.1,0.26939573]
[1733334748401,1.5962,3815.9,3815.3,2.62102]
[1733334748649,1.5962,3815.9,3814.2,0.2633]
[1733334748650,1.5962,3815.9,3814.3,2.62171]
[1733334748797,1.5962,3815.9,3815.4,2.62092]
[1733334749002,1.5962,3815.9,3814.5,0.2633]
[1733334749347,1.5962,3815.9,3815.8,2.62068]
[1733334750235,1.5962,3815.9,3815.2,0.26433329]
[1733334750450,2.78023,3815.9,3814.3,2.62171]
[1733334750599,1.5616,3815.7,3814.3,2.62171]
[1733334750796,2.62089,3815.5,3814.1,2.88514]
[1733334751003,1.5616,3815.4,3813.9,0.2633]
[1733334751298,0.15616,3815.3,3814.6,2.6215]
[1733334751499,0.15616,3815.3,3814.2,0.2633]
[1733334751750,1.5616,3815.4,3815.2,2.62102]
[1733334751908,1.5616,3815.4,3815.3,2.62102]
[1733334753104,0.53045335,3816.6,3815.0,2.62123]
[1733334753334,0.53045335,3816.6,3815.1,3.0]
[1733334753515,0.21503534,3816.5,3815.8,2.62064]
[1733334753728,1.6199,3816.4,3815.8,2.62064]
[1733334753933,1.6199,3816.4,3814.6,0.2633]
[1733334754108,0.2,3816.5,3814.6,2.62144]
[1733334754308,0.2,3816.5,3814.0,5.33520549]
[1733334754309,1.6199,3816.2,3814.0,5.33520549]
[1733334754629,1.6199,3816.2,3813.9,2.62193]
[1733334754630,1.6199,3815.6,3814.2,2.62177]
[1733334754948,1.6199,3815.4,3814.3,2.62168]
[1733334755448,1.588,3814.9,3814.0,2.62185]
[1733334755631,1.588,3814.9,3813.5,7.95739549]
[1733334755836,1.6218,3814.8,3813.4,5.33520549]
[1733334756678,1.6218,3814.8,3813.7,2.62211]
[1733334756841,1.6218,3814.6,3813.4,5.33520549]
[1733334757043,1.6218,3814.6,3813.7,2.62209]
[1733334757250,0.52751745,3814.5,3813.7,2.62207]
[1733334757408,1.6218,3814.4,3813.4,5.33520549]
[1733334757604,1.6218,3814.4,3813.3,7.95759549]
[1733334757910,1.6218,3814.2,3813.3,5.33520549]
[1733334758311,1.6218,3814.2,3813.2,5.33520549]
[1733334758725,1.6218,3814.2,3813.5,2.62221]
[1733334758955,1.6218,3814.2,3813.3,5.33520549]
[1733334759112,1.6218,3814.2,3813.5,2.62225]
[1733334759307,1.85822492,3814.2,3813.5,2.62225]
[1733334759782,1.85822492,3814.2,3813.2,5.33520549]
[1733334759913,1.6218,3814.2,3813.7,2.62212]
[1733334760117,1.6181,3813.3,3811.9,6.22440641]
[1733334760433,1.6181,3812.9,3811.4,2.6237]
[1733334760634,1.6467,3812.7,3811.1,6.22440641]
[1733334760828,1.6467,3812.7,3811.0,6.22440641]
[1733334761031,1.6467,3812.7,3811.1,0.32747339]
[1733334761217,1.6467,3812.7,3812.1,2.62321]
[1733334761554,1.6467,3812.7,3811.2,2.62384]
[1733334761762,1.6467,3812.7,3811.4,3.0]
[1733334762051,1.6467,3812.7,3812.2,2.62309]
[1733334762254,1.6467,3812.7,3812.0,2.62329]
[1733334762548,1.81137,3812.7,3812.0,2.62329]
[1733334762750,1.81137,3812.7,3812.0,2.62327]
[1733334762920,1.81137,3812.7,3812.0,2.62328]
[1733334763119,1.6467,3812.7,3811.6,3.0]
[1733334763341,1.6467,3812.7,3812.0,2.62328]
[1733334763559,1.6467,3812.7,3812.0,2.62324]
[1733334763858,1.6467,3812.7,3812.1,2.62322]
[1733334764218,1.6467,3812.7,3811.4,0.26408931]
[1733334764544,1.6467,3812.7,3812.6,2.62288]
[1733334765059,1.6497,3813.5,3813.1,2.62253]
[1733334765219,1.6497,3813.5,3812.7,2.62281]
[1733334765422,1.6497,3813.5,3812.1,3.0]
[1733334765616,1.6497,3813.5,3813.0,2.62259]
[1733334766051,1.6497,3813.5,3812.1,3.0]
[1733334766255,1.6497,3813.5,3813.0,2.6226]
[1733334766562,1.81467,3813.5,3812.3,3.0]
[1733334766922,1.81467,3813.5,3812.5,2.62291]
[1733334767121,1.81467,3813.5,3812.6,2.62285]
[1733334767327,1.81467,3813.5,3811.9,3.0]
[1733334767634,1.81467,3813.5,3811.7,2.62347]
[1733334767835,1.648,3813.3,3812.1,2.62321]
[1733334768055,2.62192,3814.0,3811.7,2.62347]
[1733334768278,0.53260925,3813.7,3811.8,0.02623172]
[1733334768488,2.62181,3814.2,3811.7,2.62346]
[1733334768646,0.51419276,3813.9,3812.8,2.62273]
[1733334768848,4.818926,3813.4,3811.1,6.22440641]
[1733334769075,2.62287,3812.7,3811.1,2.62391]
[1733334769257,2.62288,3812.6,3811.1,2.62391]
[1733334769470,3.14012334,3812.9,3811.4,2.6237]
[1733334769675,0.36901233,3812.8,3811.7,2.62347]
[1733334769859,2.277,3813.8,3811.2,0.02623531]
[1733334770064,4.89906,3813.8,3812.3,2.62305]
[1733334770278,2.277,3813.8,3812.6,2.62286]
[1733334770575,2.277,3813.8,3812.5,2.62294]
[1733334770957,0.51701072,3813.4,3811.5,3.0]
[1733334771163,1.5218,3813.3,3811.5,3.0]
[1733334771355,1.5218,3813.3,3812.5,2.62292]
[1733334771726,1.5218,3813.3,3811.1,0.55]
[1733334771892,1.5218,3813.3,3812.4,2.623]
[1733334772192,1.5218,3813.3,3812.5,2.62291]
[1733334772365,1.72568107,3813.3,3811.7,3.0]
[1733334772752,1.72568107,3813.3,3812.5,2.62294]
[1733334773095,1.5218,3813.3,3811.7,3.0]
[1733334773385,1.5218,3813.3,3812.2,2.62315]
[1733334773750,1.5218,3813.3,3812.9,2.62266]
[1733334773948,1.5218,3813.3,3812.3,2.62308]
[1733334774307,1.5218,3813.3,3812.3,2.62302]
[1733334774446,1.70778,3813.2,3812.3,2.62302]
[1733334774645,1.70778,3813.2,3811.7,3.2621]
[1733334774953,1.70778,3813.2,3812.1,2.62322]
[1733334775358,1.70778,3813.2,3812.2,2.62313]
[1733334775576,1.70778,3813.2,3812.2,2.62309]
[1733334775776,0.22336043,3813.1,3812.2,2.62309]
[1733334775996,0.22336043,3813.1,3811.7,0.2621]
[1733334776164,1.5556,3813.2,3811.8,0.0262314]
[1733334776508,1.5556,3813.2,3811.8,3.0]
[1733334776667,1.5556,3813.2,3812.6,2.62285]
[1733334777002,1.5505,3812.6,3811.5,0.5574311]
[1733334777215,1.5505,3812.4,3810.8,6.22440641]
[1733334777365,1.5505,3812.4,3811.4,2.62367]
[1733334777570,1.5505,3812.4,3811.0,0.02623728]